fUSD/lending_fUSD_20260319
["ID","MTS","AMOUNT","RATE_DAILY","PERIOD"]
[408598393,1773918529408,-5000.01,8.515e-05,2]
[408598394,1773918529637,-5000.01,8.515e-05,2]
[408598395,1773918529762,-5000.01,8.515e-05,2]
[408598396,1773918534259,-9073.516,8.515e-05,2]
[408598397,1773918534377,-10000.01,8.515e-05,2]
[408598398,1773918534779,-10000.01,8.515e-05,2]
[408598399,1773918534826,-10000.01,8.515e-05,2]
[408598400,1773918535485,-5000.01,8.515e-05,2]
[408598401,1773918535588,-5000.01,8.515e-05,2]
[408598402,1773918535701,-5000.01,8.515e-05,2]
[408598403,1773918539429,-10000.01,8.515e-05,2]
[408598404,1773918539535,-10000.01,8.515e-05,2]
[408598405,1773918539636,-10000.01,8.515e-05,2]
[408598406,1773918539738,-10000.01,8.515e-05,2]
[408598407,1773918539842,-10000.01,8.515e-05,2]
[408598408,1773918540054,-10000.01,8.515e-05,2]
[408598409,1773918542606,-300.0,8.514e-05,2]
[408598410,1773918542634,-253.43471266,8.514e-05,2]
[408598411,1773918542661,-1208.08309607,8.514e-05,2]
[408598412,1773918542732,150.0,8.514e-05,2]
[408598413,1773918545019,300.0,8.514e-05,2]
[408598414,1773918557716,-9550.01,8.515e-05,2]
[408598415,1773918557797,-10000.01,8.515e-05,2]
[408598416,1773918557907,-10000.01,8.515e-05,2]
[408598417,1773918558074,-10000.01,8.515e-05,2]
[408598418,1773918558175,-10000.01,8.515e-05,2]
[408598419,1773918559856,-10000.01,8.515e-05,2]
[408598420,1773918559973,-10000.01,8.515e-05,2]
[408598421,1773918560092,-10000.01,8.515e-05,2]
[408598422,1773918560187,-10000.01,8.515e-05,2]
[408598423,1773918560367,-10000.01,8.515e-05,2]
[408598424,1773918567140,-5550.815746,8.515e-05,2]
[408598425,1773918581793,-10000.01,7.763e-05,2]
[408598426,1773918581907,-1399.78,7.763e-05,2]
[408598427,1773918597038,-697.25400216,8.515e-05,2]
[408598428,1773918601759,300.0,8.514e-05,2]
[408598429,1773918601989,1200.0,8.514e-05,2]
[408598432,1773918604425,221.0,8.515e-05,2]
[408598436,1773918607000,159.0,7.763e-05,3]
[408598437,1773918607040,287.70846583,8.515e-05,2]
[408598443,1773918612217,-10000.01,8.515e-05,2]
[408598445,1773918612345,-10000.01,8.515e-05,2]
[408598446,1773918612445,-10000.01,8.515e-05,2]
[408598447,1773918612571,-10000.01,8.515e-05,2]
[408598448,1773918612757,-10000.01,8.515e-05,2]
[408598449,1773918612868,-10000.01,8.515e-05,2]
[408598450,1773918613011,-10000.01,8.515e-05,2]
[408598451,1773918613114,-10000.01,8.515e-05,2]
[408598453,1773918627199,10000.01,7.785e-05,2]
[408598454,1773918627221,2991.30153417,7.785e-05,2]
[408598455,1773918627249,3686.05846583,7.785e-05,2]
[408598458,1773918631701,-405.23147994,8.515e-05,2]
[408598459,1773918632018,-1350759.83736679,8.515e-05,2]
[408598460,1773918632038,-408953.85831973,8.515e-05,2]
[408598461,1773918632052,-7153.26184371,8.515e-05,2]
[408598462,1773918632064,-1100.0,8.515e-05,2]
[408598463,1773918633709,500.0,8.247e-05,2]
[408598464,1773918637829,-957.85197367,8.515e-05,2]
[408598465,1773918637853,-65876.19073478,8.515e-05,2]
[408598466,1773918637890,-12884.91407457,8.515e-05,2]
[408598467,1773918637992,-1343.44849106,8.515e-05,2]
[408598475,1773918645687,-1648.13813,8.515e-05,2]
[408598476,1773918645741,-855.82231587,8.515e-05,2]
[408598515,1773918759532,1913.0,8.62e-05,5]
[408598516,1773918817852,1450.9,7.713e-05,2]
[408598517,1773918844384,-5000.0,8.178e-05,2]
[408598518,1773918844581,-0.01,8.178e-05,2]
[408598519,1773918859465,-151.0,8.412e-05,2]
[408598520,1773918874635,-185.0,8.414e-05,2]
[408598521,1773918881910,3303.36,7.704e-05,2]
[408598522,1773918889840,-326.96150691,8.414e-05,2]
[408598523,1773918889869,-500.0,8.414e-05,2]
[408598524,1773918889896,-253.09407883,8.414e-05,2]
[408598525,1773918889922,-500.0,8.414e-05,2]
[408598526,1773918889953,-366.12709315,8.414e-05,2]
[408598527,1773918889980,-500.0,8.414e-05,2]
[408598528,1773918890009,-500.0,8.414e-05,2]
[408598529,1773918890044,-992.95272918,8.414e-05,2]
[408598530,1773918890074,-500.0,8.414e-05,2]
[408598531,1773918890105,-128.78645468,8.414e-05,2]
[408598532,1773918890219,-864.1662745,8.414e-05,2]
[408598533,1773918890247,-359.43539204,8.414e-05,2]
[408598534,1773918890273,-500.0,8.414e-05,2]
[408598535,1773918890300,-500.0,8.414e-05,2]
[408598536,1773918890329,-992.95272918,8.414e-05,2]
[408598537,1773918890357,-992.95272918,8.414e-05,2]
[408598538,1773918890385,-500.0,8.414e-05,2]
[408598539,1773918890412,-80.9957502,8.414e-05,2]
[408598540,1773918890544,-419.0042498,8.414e-05,2]
[408598541,1773918890572,-992.95272918,8.414e-05,2]
[408598542,1773918890600,-992.95272918,8.414e-05,2]
[408598543,1773918890629,-344.16057303,8.414e-05,2]
[408598544,1773918890654,-500.0,8.414e-05,2]
[408598545,1773918890684,-992.95272918,8.414e-05,2]
[408598546,1773918890712,-500.0,8.414e-05,2]
[408598547,1773918890801,-992.95272918,8.414e-05,2]
[408598548,1773918890827,-380.0376314,8.414e-05,2]
[408598549,1773918890855,-992.95272918,8.414e-05,2]
[408598550,1773918890884,-992.95272918,8.414e-05,2]
[408598551,1773918890914,-992.95272918,8.414e-05,2]
[408598552,1773918890944,-303.36017458,8.414e-05,2]
[408598553,1773918891065,-689.5925546,8.414e-05,2]
[408598554,1773918891093,-992.95272918,8.414e-05,2]
[408598555,1773918891121,-992.95272918,8.414e-05,2]
[408598556,1773918891150,-992.95272918,8.414e-05,2]
[408598557,1773918891418,-992.95272918,8.414e-05,2]
[408598558,1773918891588,-992.95272918,8.414e-05,2]
[408598559,1773918891618,-992.95272918,8.414e-05,2]
[408598560,1773918891650,-992.95272918,8.414e-05,2]
[408598561,1773918891682,-992.95272918,8.414e-05,2]
[408598562,1773918891711,-992.95272918,8.414e-05,2]
[408598563,1773918891804,-992.95272918,8.414e-05,2]
[408598564,1773918891834,-992.95272918,8.414e-05,2]
[408598565,1773918891865,-992.95272918,8.414e-05,2]
[408598566,1773918891893,-992.95272918,8.414e-05,2]
[408598567,1773918891921,-992.95272918,8.414e-05,2]
[408598568,1773918892947,-992.95272918,8.414e-05,2]
[408598569,1773918892977,-992.95272918,8.414e-05,2]
[408598570,1773918893006,-992.95272918,8.414e-05,2]
[408598571,1773918893036,-992.95272918,8.414e-05,2]
[408598572,1773918893065,-992.95272918,8.414e-05,2]
[408598573,1773918893181,-992.95272918,8.414e-05,2]
[408598574,1773918893215,-992.95272918,8.414e-05,2]
[408598575,1773918893245,-992.95272918,8.414e-05,2]
[408598576,1773918893275,-992.95272918,8.414e-05,2]
[408598577,1773918893305,-992.95272918,8.414e-05,2]
[408598578,1773918893377,-992.95272918,8.414e-05,2]
[408598579,1773918893412,-992.95272918,8.414e-05,2]
[408598580,1773918893443,-992.95272918,8.414e-05,2]
[408598581,1773918893475,-992.95272918,8.414e-05,2]
[408598582,1773918893507,-992.95272918,8.414e-05,2]
[408598583,1773918893604,-992.95272918,8.414e-05,2]
[408598584,1773918893639,-992.95272918,8.414e-05,2]
[408598585,1773918893669,-992.95272918,8.414e-05,2]
[408598586,1773918893700,-992.95272918,8.414e-05,2]
[408598587,1773918893730,-992.95272918,8.414e-05,2]
[408598588,1773918898954,-992.95272918,8.414e-05,2]
[408598589,1773918899198,-992.95272918,8.414e-05,2]
[408598590,1773918899226,-992.95272918,8.414e-05,2]
[408598591,1773918899253,-992.95272918,8.414e-05,2]
[408598592,1773918899281,-983.02320188,8.414e-05,2]
[408598593,1773918899342,-983.02320188,8.414e-05,2]
[408598594,1773918899371,-983.02320188,8.414e-05,2]
[408598595,1773918899399,-983.02320188,8.414e-05,2]
[408598596,1773918899427,-983.02320188,8.414e-05,2]
[408598597,1773918899456,-983.02320188,8.414e-05,2]
[408598598,1773918899544,-983.02320188,8.414e-05,2]
[408598599,1773918899573,-983.02320188,8.414e-05,2]
[408598600,1773918899601,-983.02320188,8.414e-05,2]
[408598601,1773918899635,-983.02320188,8.414e-05,2]
[408598602,1773918899665,-983.02320188,8.414e-05,2]
[408598603,1773918900004,-983.02320188,8.414e-05,2]
[408598604,1773918900034,-983.02320188,8.414e-05,2]
[408598605,1773918900065,-983.02320188,8.414e-05,2]
[408598606,1773918900094,-983.02320188,8.414e-05,2]
[408598607,1773918900124,-983.02320188,8.414e-05,2]
[408598608,1773918900236,-983.02320188,8.414e-05,2]
[408598609,1773918900266,-983.02320188,8.414e-05,2]
[408598610,1773918900296,-983.02320188,8.414e-05,2]
[408598611,1773918900325,-983.02320188,8.414e-05,2]
[408598612,1773918900355,-983.02320188,8.414e-05,2]
[408598613,1773918911663,159.0,8.414e-05,3]
[408598614,1773919036439,168.1627949,0.00012526,10]
[408598616,1773919056238,-1500.0,7.63e-05,2]
[408598617,1773919071236,-500.0,8.078e-05,2]
[408598618,1773919086313,5359.85,7.545e-05,2]
[408598619,1773919087486,-2190.39259852,8.315e-05,2]
[408598620,1773919103704,-300.0,8.392e-05,2]
[408598621,1773919103735,-300.0,8.392e-05,2]
[408598622,1773919103764,-150.0,8.392e-05,2]
[408598623,1773919118884,-5000.0,8.393e-05,2]
[408598624,1773919118991,-1642.01,8.393e-05,2]
[408598625,1773919119017,-194.24944797,8.393e-05,2]
[408598626,1773919119044,-380.33628218,8.393e-05,2]
[408598627,1773919119078,-566.8185397,8.393e-05,2]
[408598628,1773919119213,-4433.1814603,8.393e-05,2]
[408598629,1773919119239,-193.0,8.393e-05,2]
[408598630,1773919119286,747.6470794,8.392e-05,2]
[408598631,1773919119307,452.3529206,8.392e-05,2]
[408598632,1773919172614,950.24172407,8.392e-05,2]
[408598633,1773919173516,169.65,6.037e-05,2]
[408598634,1773919173565,169.65,7.043e-05,2]
[408598635,1773919173606,169.65,8.049e-05,2]
[408598636,1773919206936,159.0,8.414e-05,3]
[408598637,1773919278123,508.84,8e-05,2]
[408598638,1773919308279,-220.0,8.401e-05,2]
[408598639,1773919324441,-1200.0,8.403e-05,2]
[408598640,1773919324468,-300.0,8.403e-05,2]
[408598641,1773919324494,-300.0,8.403e-05,2]
[408598642,1773919324520,-300.0,8.403e-05,2]
[408598643,1773919324547,-1554.558,8.403e-05,2]
[408598644,1773919324773,-2690.894,8.403e-05,2]
[408598645,1773919324800,-193.249,8.403e-05,2]
[408598646,1773919345607,250.0,8.315e-05,2]
[408598647,1773919368171,1534.0,8.62e-05,5]
[408598648,1773919441094,300.0,8.403e-05,2]
[408598649,1773919441618,160.0,8.403e-05,2]
[408598650,1773919442913,300.0,8.403e-05,2]
[408598651,1773919443008,166.66,7.823e-05,2]
[408598652,1773919443222,166.66,8.082e-05,2]
[408598653,1773919443429,166.66,8.34e-05,2]
[408598654,1773919501188,1200.0,8.403e-05,2]
[408598655,1773919501216,300.0,8.403e-05,2]
[408598656,1773919501279,300.0,8.403e-05,2]
[408598657,1773919501338,300.0,8.403e-05,2]
[408598658,1773919511099,187.0,8.414e-05,3]
[408598659,1773919529085,200.0,8.4e-05,2]
[408598660,1773919621589,-3599.96308298,8.406e-05,2]
[408598661,1773919621616,-260.13288346,8.406e-05,2]
[408598662,1773919624392,2279.81806712,8.404e-05,2]
[408598663,1773919624414,10000.01,8.404e-05,2]
[408598664,1773919624434,10000.01,8.404e-05,2]
[408598665,1773919624455,7919.77774874,8.404e-05,2]
[408598666,1773919636611,-380.97729668,8.407e-05,2]
[408598667,1773919648669,9238.05540664,8.314e-05,2]
[408598668,1773919648692,10000.01,8.314e-05,2]
[408598669,1773919648715,10000.01,8.314e-05,2]
[408598670,1773919648736,10000.01,8.314e-05,2]
[408598671,1773919648757,9615.81109336,8.314e-05,2]
[408598672,1773919651850,-250.0,8.408e-05,2]
[408598673,1773919666995,-150.0,8.409e-05,2]
[408598674,1773919667022,-300.0,8.409e-05,2]
[408598675,1773919681235,300.0,8.409e-05,2]
[408598676,1773919683227,-1565.79,8.41e-05,2]
[408598677,1773919699344,367.85,8.219e-05,2]
[408598678,1773919769762,300.0,8.402e-05,2]
[408598680,1773919801202,300.0,8.409e-05,2]
[408598681,1773919801230,1200.0,8.409e-05,2]
[408598682,1773919802583,150.0,8.409e-05,2]
[408598683,1773919802612,300.0,8.409e-05,2]
[408598684,1773919803726,4250.58,8.384e-05,2]
[408598685,1773919803749,10000.01,8.384e-05,2]
[408598686,1773919803772,8425.3,8.384e-05,2]
[408598687,1773919805331,220.0,8.41e-05,2]
[408598688,1773919808108,187.0,8.402e-05,3]
[408598689,1773919812808,253.98486444,8.41e-05,2]
[408598701,1773919831899,-250.0,8.41e-05,2]
[408598702,1773919831910,-148.97576993,8.41e-05,2]
[408598703,1773919832010,-351.02423007,8.41e-05,2]
[408598704,1773919832020,-151.48724781,8.41e-05,2]
[408598705,1773919832036,-500.0,8.41e-05,2]
[408598706,1773919832053,-5086.42435583,8.41e-05,2]
[408598707,1773919832070,-3479.33120328,8.41e-05,2]
[408598708,1773919832082,-391.19164398,8.41e-05,2]
[408598709,1773919832094,-500.0,8.41e-05,2]
[408598710,1773919832105,-500.0,8.41e-05,2]
[408598711,1773919832117,-197.82587578,8.41e-05,2]
[408598712,1773919832128,-516.7072934,8.41e-05,2]
[408598713,1773919832140,-500.0,8.41e-05,2]
[408598714,1773919832152,-500.0,8.41e-05,2]
[408598715,1773919832163,-500.0,8.41e-05,2]
[408598716,1773919832175,-500.0,8.41e-05,2]
[408598717,1773919832186,-500.0,8.41e-05,2]
[408598718,1773919832197,-500.0,8.41e-05,2]
[408598719,1773919832207,-250.0,8.41e-05,2]
[408598720,1773919832219,-500.0,8.41e-05,2]
[408598721,1773919832230,-500.0,8.41e-05,2]
[408598722,1773919832241,-500.0,8.41e-05,2]
[408598723,1773919832252,-500.0,8.41e-05,2]
[408598725,1773919832263,-174.61919141,8.41e-05,2]
[408598727,1773919832275,-500.0,8.41e-05,2]
[408598729,1773919832286,-500.0,8.41e-05,2]
[408598730,1773919832296,-500.0,8.41e-05,2]
[408598731,1773919832306,-500.0,8.41e-05,2]
[408598732,1773919832318,-265.80029316,8.41e-05,2]
[408598733,1773919832328,-250.0,8.41e-05,2]
[408598734,1773919832339,-151.0,8.41e-05,2]
[408598735,1773919832350,-500.0,8.414e-05,2]
[408598736,1773919832360,-500.0,8.414e-05,2]
[408598737,1773919832371,-500.0,8.414e-05,2]
[408598738,1773919832386,-500.0,8.414e-05,2]
[408598739,1773919832398,-629.15006579,8.414e-05,2]
[408598740,1773919832410,-500.0,8.414e-05,2]
[408598741,1773919832422,-500.0,8.414e-05,2]
[408598742,1773919832433,-500.0,8.414e-05,2]
[408598743,1773919832445,-500.0,8.414e-05,2]
[408598744,1773919832457,-500.0,8.414e-05,2]
[408598745,1773919832468,-500.0,8.414e-05,2]
[408598746,1773919832479,-500.0,8.414e-05,2]
[408598747,1773919832490,-500.0,8.414e-05,2]
[408598748,1773919832501,-500.0,8.414e-05,2]
[408598749,1773919832512,-500.0,8.414e-05,2]
[408598750,1773919832523,-500.0,8.414e-05,2]
[408598751,1773919832534,-500.0,8.414e-05,2]
[408598752,1773919832546,-500.0,8.414e-05,2]
[408598753,1773919832557,-500.0,8.414e-05,2]
[408598754,1773919832573,-500.0,8.414e-05,2]
[408598755,1773919832584,-500.0,8.414e-05,2]
[408598756,1773919832596,-500.0,8.414e-05,2]
[408598757,1773919832607,-500.0,8.414e-05,2]
[408598758,1773919832619,-500.0,8.414e-05,2]
[408598759,1773919832631,-500.0,8.414e-05,2]
[408598760,1773919832642,-500.0,8.414e-05,2]
[408598761,1773919832653,-500.0,8.414e-05,2]
[408598762,1773919832665,-500.0,8.414e-05,2]
[408598763,1773919832676,-500.0,8.414e-05,2]
[408598764,1773919832688,-500.0,8.414e-05,2]
[408598765,1773919832699,-500.0,8.414e-05,2]
[408598766,1773919832711,-500.0,8.414e-05,2]
[408598767,1773919832722,-500.0,8.414e-05,2]
[408598768,1773919832734,-500.0,8.414e-05,2]
[408598769,1773919832745,-500.0,8.414e-05,2]
[408598770,1773919832761,-500.0,8.414e-05,2]
[408598771,1773919832772,-500.0,8.414e-05,2]
[408598772,1773919832783,-500.0,8.414e-05,2]
[408598773,1773919832794,-228.56135058,8.414e-05,2]
[408598774,1773919832805,-500.0,8.414e-05,2]
[408598775,1773919832816,-500.0,8.414e-05,2]
[408598776,1773919832827,-500.0,8.414e-05,2]
[408598777,1773919832838,-500.0,8.414e-05,2]
[408598778,1773919832848,-500.0,8.414e-05,2]
[408598779,1773919832860,-500.0,8.414e-05,2]
[408598780,1773919832873,-228.87305483,8.414e-05,2]
[408598781,1773919832884,-500.0,8.414e-05,2]
[408598782,1773919832895,-500.0,8.414e-05,2]
[408598783,1773919832907,-500.0,8.414e-05,2]
[408598784,1773919832918,-500.0,8.414e-05,2]
[408598785,1773919832928,-500.0,8.414e-05,2]
[408598786,1773919832942,-500.0,8.414e-05,2]
[408598787,1773919832952,-500.0,8.414e-05,2]
[408598788,1773919832962,-500.0,8.414e-05,2]
[408598789,1773919832973,-500.0,8.414e-05,2]
[408598790,1773919832983,-500.0,8.414e-05,2]
[408598791,1773919832993,-500.0,8.414e-05,2]
[408598792,1773919833004,-500.0,8.414e-05,2]
[408598793,1773919833014,-500.0,8.414e-05,2]
[408598794,1773919833024,-500.0,8.414e-05,2]
[408598795,1773919833035,-500.0,8.414e-05,2]
[408598796,1773919833044,-600.0,8.414e-05,2]
[408598797,1773919833055,-500.0,8.414e-05,2]
[408598798,1773919833065,-628.86899717,8.414e-05,2]
[408598799,1773919833075,-260.46228589,8.414e-05,2]
[408598800,1773919833085,-264.44862571,8.414e-05,2]
[408598801,1773919833095,-168.21260728,8.414e-05,2]
[408598802,1773919833106,-500.0,8.414e-05,2]
[408598803,1773919833116,-270.16779019,8.414e-05,2]
[408598804,1773919833126,-500.0,8.414e-05,2]
[408598805,1773919833139,-443.70961904,8.414e-05,2]
[408598806,1773919833150,-2100161.9936022,8.415e-05,2]
[408598807,1773919833164,-202222.56524996,8.415e-05,2]
[408598808,1773919833176,-197615.44114784,8.415e-05,2]
[408598809,1773919833187,-253.98486444,8.427e-05,2]
[408598810,1773919833197,-53531.20722753,8.443e-05,2]
[408598811,1773919833209,-239333.49827538,8.443e-05,2]
[408598812,1773919833220,-2357.70538484,8.443e-05,2]
[408598813,1773919833230,-2266.48431264,8.443e-05,2]
[408598814,1773919833241,-253.98486444,8.443e-05,2]
[408598815,1773919833252,-317.0,8.45e-05,2]
[408598816,1773919833263,-3804.48,8.45e-05,2]
[408598817,1773919833273,-150.99,8.45e-05,2]
[408598818,1773919833284,-4999.99,8.45e-05,2]
[408598819,1773919833295,-150.99,8.45e-05,2]
[408598820,1773919833306,-299.99,8.45e-05,2]
[408598821,1773919833320,-9999.99,8.45e-05,2]
[408598822,1773919833330,-999.99,8.45e-05,2]
[408598823,1773919833342,-9999.99,8.45e-05,2]
[408598824,1773919833354,-350.86,8.45e-05,2]
[408598825,1773919833365,-500.0,8.465e-05,2]
[408598826,1773919833376,-8882.6885148,8.465e-05,2]
[408598827,1773919833388,-151.0,8.465e-05,2]
[408598828,1773919833399,-785.0,8.467e-05,2]
[408598829,1773919833411,-186.4667415,8.473e-05,2]
[408598830,1773919833424,-976.0,8.484e-05,2]
[408598831,1773919833434,-220.0,8.485e-05,2]
[408598832,1773919833444,-233.0,8.489e-05,2]
[408598833,1773919833455,-459.4584081,8.49e-05,2]
[408598834,1773919833466,-574.42695522,8.493e-05,2]
[408598835,1773919833477,-502.21245026,8.493e-05,2]
[408598836,1773919833488,-500.0,8.493e-05,2]
[408598837,1773919833498,-1374.0,8.499e-05,2]
[408598838,1773919833509,-1405.0,8.5e-05,2]
[408598839,1773919833520,-882.0,8.502e-05,2]
[408598840,1773919833532,-282.43581554,8.504e-05,2]
[408598841,1773919833542,-262.0,8.506e-05,2]
[408598842,1773919833553,-2572.31327572,8.513e-05,2]
[408598843,1773919833563,-151.0,8.514e-05,2]
[408598844,1773919833574,-151.0,8.514e-05,2]
[408598845,1773919833584,-151.0,8.514e-05,2]
[408598846,1773919833594,-677.0,8.515e-05,2]
[408598847,1773919833605,-2914.16001294,8.515e-05,2]
[408598848,1773919833615,-1046.8329771,8.515e-05,2]
[408598849,1773919834076,-155.0,8.516e-05,2]
[408598850,1773919834095,-1022.0,8.516e-05,2]
[408598851,1773919834108,-500.0,8.52e-05,2]
[408598852,1773919834120,-9211.34798985,8.52e-05,2]
[408598853,1773919834130,-151.0,8.52e-05,2]
[408598854,1773919834140,-418.0,8.523e-05,2]
[408598855,1773919834149,-1167.0,8.532e-05,2]
[408598856,1773919834159,-230.0,8.533e-05,2]
[408598857,1773919834169,-195.0,8.549e-05,2]
[408598858,1773919834178,-1659.0,8.558e-05,2]
[408598859,1773919834187,-1659.0,8.558e-05,2]
[408598860,1773919834198,-1659.0,8.558e-05,2]
[408598861,1773919834208,-1659.0,8.558e-05,2]
[408598862,1773919834218,-1659.0,8.558e-05,2]
[408598863,1773919834227,-1659.0,8.558e-05,2]
[408598864,1773919834236,-1659.0,8.558e-05,2]
[408598865,1773919834246,-1659.0,8.558e-05,2]
[408598866,1773919834256,-1659.0,8.558e-05,2]
[408598867,1773919834265,-1659.0,8.558e-05,2]
[408598868,1773919834274,-1659.0,8.558e-05,2]
[408598869,1773919834285,-1659.0,8.558e-05,2]
[408598870,1773919834295,-1659.0,8.558e-05,2]
[408598871,1773919834308,-1659.0,8.558e-05,2]
[408598872,1773919834317,-1659.0,8.558e-05,2]
[408598873,1773919834328,-1659.0,8.558e-05,2]
[408598874,1773919834337,-1659.0,8.558e-05,2]
[408598875,1773919834346,-1659.0,8.558e-05,2]
[408598876,1773919834356,-1659.0,8.558e-05,2]
[408598877,1773919834365,-1659.0,8.558e-05,2]
[408598878,1773919834374,-1659.0,8.558e-05,2]
[408598879,1773919834383,-1659.0,8.558e-05,2]
[408598880,1773919834392,-1659.0,8.558e-05,2]
[408598881,1773919834402,-190.56915643,8.558e-05,2]
[408598882,1773919834414,-1254.41808677,8.558e-05,2]
[408598883,1773919834435,-234.05232174,8.558e-05,2]
[408598884,1773919834444,-500.0,8.575e-05,2]
[408598885,1773919834454,-5323.03781825,8.575e-05,2]
[408598886,1773919834466,-4229.13004722,8.575e-05,2]
[408598887,1773919834475,-151.0,8.575e-05,2]
[408598888,1773919834485,-173.30152976,8.575e-05,2]
[408598889,1773919834500,-326.69847024,8.575e-05,2]
[408598890,1773919834510,-166.66,8.598e-05,2]
[408598891,1773919834520,-500.0,8.63e-05,2]
[408598892,1773919834529,-275.60995278,8.63e-05,2]
[408598893,1773919834541,-3250.0,8.63e-05,2]
[408598897,1773919837951,-6379.98812372,8.63e-05,2]
[408598898,1773919837961,-151.0,8.63e-05,2]
[408598899,1773919837970,-1600.0,8.663e-05,2]
[408598900,1773919837980,-367.85,8.676e-05,2]
[408598901,1773919837989,-1565.79,8.684e-05,2]
[408598902,1773919837999,-500.0,8.685e-05,2]
[408598903,1773919838009,-10272.10520533,8.685e-05,2]
[408598904,1773919838018,-183.91624356,8.685e-05,2]
[408598905,1773919838028,-500.0,8.688e-05,2]
[408598906,1773919838038,-562.34804496,8.74e-05,2]
[408598907,1773919838048,-10652.17309792,8.74e-05,2]
[408598908,1773919838058,-11046.30350255,8.795e-05,2]
[408598909,1773919838068,-11455.01673214,8.85e-05,2]
[408598910,1773919838079,-166.66,8.856e-05,2]
[408598911,1773919838088,-160.696,8.896e-05,2]
[408598912,1773919838097,-11878.85235123,8.905e-05,2]
[408598913,1773919838108,-3739.52919373,8.928e-05,2]
[408598914,1773919838117,-1565.79,8.958e-05,2]
[408598915,1773919838127,-12318.36988823,8.96e-05,2]
[408598916,1773919838138,-500.0,8.962e-05,2]
[408598917,1773919838149,-164.75,9e-05,2]
[408598918,1773919838159,-12774.14957409,9.015e-05,2]
[408598919,1773919838168,-500.0,9.053e-05,2]
[408598920,1773919838178,-169.65,9.055e-05,2]
[408598921,1773919838187,-13132.71541399,9.07e-05,2]
[408598922,1773919838197,-600.0,9.094e-05,2]
[408598923,1773919838206,-166.66,9.115e-05,2]
[408598924,1773919838216,-151.0,9.12e-05,2]
[408598925,1773919838226,-10000.0,9.123e-05,2]
[408598926,1773919838235,-367.85,9.132e-05,2]
[408598927,1773919838244,-237.52,9.227e-05,2]
[408598928,1773919838254,-1565.79,9.232e-05,2]
[408598929,1773919838263,-500.0,9.236e-05,2]
[408598930,1773919838274,-2000.0,9.247e-05,2]
[408598931,1773919838284,-250.0,9.248e-05,2]
[408598932,1773919838293,-397.0,9.25e-05,2]
[408598933,1773919838306,-1680.0,9.25e-05,2]
[408598934,1773919838317,-255.0,9.25e-05,2]
[408598935,1773919838326,-420.0,9.25e-05,2]
[408598937,1773919838336,-250.0,9.251e-05,2]
[408598939,1773919838345,-250.0,9.251e-05,2]
[408598941,1773919838354,-155.0,9.368e-05,2]
[408598943,1773919838363,-285228.11488169,9.5e-05,3]
[408598945,1773919838372,-1000.0,9.5e-05,2]
[408598947,1773919838381,-276656.28722738,9.5e-05,3]
[408598949,1773919838390,-151.0,9.5e-05,2]
[408598951,1773919838400,-1565.79,9.506e-05,2]
[408598953,1773919838409,-500.0,9.51e-05,2]
[408598955,1773919838418,-367.85,9.589e-05,2]
[408598957,1773919838427,-586.42594914,9.601e-05,2]
[408598959,1773919838436,-1600.0,9.626e-05,2]
[408598961,1773919838445,-151.0,9.634e-05,2]
[408598963,1773919838454,-1565.79,9.78e-05,2]
[408598965,1773919838463,-500.0,9.784e-05,2]
[408598967,1773919838472,-155.0,9.786e-05,2]
[408598969,1773919838482,-155.29446445,9.8e-05,4]
[408598971,1773919838491,-1307.64723686,9.8e-05,2]
[408598973,1773919838500,-215.495479,9.8e-05,2]
[408598975,1773919838509,-245.649185,9.8e-05,2]
[408598977,1773919838518,-210.513893,9.8e-05,2]
[408598979,1773919838527,-358.534242,9.8e-05,2]
[408598981,1773919838536,-179.694027,9.8e-05,2]
[408598983,1773919838546,-341.863183,9.8e-05,2]
[408598985,1773919838554,-197.49198,9.8e-05,2]
[408598987,1773919838565,-190.828498,9.8e-05,2]
[408598989,1773919838574,-381.049025,9.8e-05,2]
[408598991,1773919838582,-1942.44615155,0.0001,2]
[408598993,1773919838591,-5331.76701087,0.0001,2]
[408598995,1773919838600,-151.76342285,0.0001,2]
[408598997,1773919838610,-116437.0,0.0001,2]
[408598999,1773919838619,-1000.0,0.0001,2]
[408599001,1773919838629,-1704.67864553,0.0001,2]
[408599003,1773919838638,-4164.18715089,0.0001,2]
[408599005,1773919838647,-4172.41857065,0.0001,2]